{"text_format":"1","workbook":"xlsx","n_sheets":1,"sheets":["Liv-ex"],"not_rendered":{"charts":0,"images":1,"macros":1,"external_links":0,"defined_names":3,"comments":0,"pivot_tables":0},"unopened":[],"bounds":{"document_bytes":16777216,"sheet_cells":100000,"rows_first":2000,"rows_last":500,"rows_between":2000,"halvings":0,"cell_chars":16384,"cell_head_chars":4096},"cells_cut":0,"cells_raw":0,"read":"whole","date_system":"1900"}

{"sheet":"Liv-ex","index":0,"n_rows":137,"n_cols":9,"rows_kept":137,"cut":false,"hidden":false,"merged":[[0,1,2,1]]}
[null,"Please 'Enable Editing' and 'Enable Content' to interact with the sheet"]
[]
[]
[]
[]
[]
[]
[]
[]
[null,"Wine","Vintage","Unit Size","Offer (GBP)","Offer (Eur/btt)","Quantity","Latest LWIN","LWIN11"]
[null,"Alain Voge, Cornas Vv",2016,"6x75",187,34.9,1,"11184832016",{"$f":"HYPERLINK(\"https://app.liv-ex.com/#/wine-page?lwin11=\"&Table1[[#This Row],[Latest LWIN]],Table1[[#This Row],[Latest LWIN]])","v":"11184832016"}]
[null,"Alain Voge, Cotes du Rhone Les Peyrouses",2012,"12x75",105,9.8000000000000007,1,"11184412012",{"$f":"HYPERLINK(\"https://app.liv-ex.com/#/wine-page?lwin11=\"&Table1[[#This Row],[Latest LWIN]],Table1[[#This Row],[Latest LWIN]])","v":"11184412012"}]
[null,"Alain Voge, Les Bulles d'Alain","NV","12x75",165,15.4,3,"11185131000",{"$f":"HYPERLINK(\"https://app.liv-ex.com/#/wine-page?lwin11=\"&Table1[[#This Row],[Latest LWIN]],Table1[[#This Row],[Latest LWIN]])","v":"11185131000"}]
[null,"Allemand, Cornas Chaillot",2017,"2x75",335,187.4,1,"11080842017",{"$f":"HYPERLINK(\"https://app.liv-ex.com/#/wine-page?lwin11=\"&Table1[[#This Row],[Latest LWIN]],Table1[[#This Row],[Latest LWIN]])","v":"11080842017"}]
[null,"Allemand, Cornas Chaillot",2017,"1x150",366,409.4,2,"11080842017",{"$f":"HYPERLINK(\"https://app.liv-ex.com/#/wine-page?lwin11=\"&Table1[[#This Row],[Latest LWIN]],Table1[[#This Row],[Latest LWIN]])","v":"11080842017"}]
[null,"Allemand, Cornas Chaillot",2015,"12x75",2300,214.4,1,"11080842015",{"$f":"HYPERLINK(\"https://app.liv-ex.com/#/wine-page?lwin11=\"&Table1[[#This Row],[Latest LWIN]],Table1[[#This Row],[Latest LWIN]])","v":"11080842015"}]
[null,"Allemand, Cornas Chaillot",2015,"1x150",380,425.1,1,"11080842015",{"$f":"HYPERLINK(\"https://app.liv-ex.com/#/wine-page?lwin11=\"&Table1[[#This Row],[Latest LWIN]],Table1[[#This Row],[Latest LWIN]])","v":"11080842015"}]
[null,"Allemand, Cornas Chaillot",2015,"1x75",175,195.8,1,"11080842015",{"$f":"HYPERLINK(\"https://app.liv-ex.com/#/wine-page?lwin11=\"&Table1[[#This Row],[Latest LWIN]],Table1[[#This Row],[Latest LWIN]])","v":"11080842015"}]
[null,"Allemand, Cornas Reynard",2017,"3x75",604,225.2,1,"11080972017",{"$f":"HYPERLINK(\"https://app.liv-ex.com/#/wine-page?lwin11=\"&Table1[[#This Row],[Latest LWIN]],Table1[[#This Row],[Latest LWIN]])","v":"11080972017"}]
[null,"Allemand, Cornas Reynard",2012,"1x75",190,212.5,1,"11080972012",{"$f":"HYPERLINK(\"https://app.liv-ex.com/#/wine-page?lwin11=\"&Table1[[#This Row],[Latest LWIN]],Table1[[#This Row],[Latest LWIN]])","v":"11080972012"}]
[null,"Beaucastel, Chateauneuf Du Pape Hommage J Perrin",2011,"3x75",405,151,6,"11084042011",{"$f":"HYPERLINK(\"https://app.liv-ex.com/#/wine-page?lwin11=\"&Table1[[#This Row],[Latest LWIN]],Table1[[#This Row],[Latest LWIN]])","v":"11084042011"}]
[null,"Beaucastel, Chateauneuf Du Pape Hommage J Perrin",2007,"1x75",345,385.9,1,"11084042007",{"$f":"HYPERLINK(\"https://app.liv-ex.com/#/wine-page?lwin11=\"&Table1[[#This Row],[Latest LWIN]],Table1[[#This Row],[Latest LWIN]])","v":"11084042007"}]
[null,"Beaucastel, Chateauneuf du Pape Roussanne Vv",2012,"6x75",465,86.7,1,"13148852012",{"$f":"HYPERLINK(\"https://app.liv-ex.com/#/wine-page?lwin11=\"&Table1[[#This Row],[Latest LWIN]],Table1[[#This Row],[Latest LWIN]])","v":"13148852012"}]
[null,"Beaucastel, Cotes Du Rhone Coudoulet",2012,"3x75",40,14.9,1,"11309402012",{"$f":"HYPERLINK(\"https://app.liv-ex.com/#/wine-page?lwin11=\"&Table1[[#This Row],[Latest LWIN]],Table1[[#This Row],[Latest LWIN]])","v":"11309402012"}]
[null,"Billon, Cote Rotie Elotins",2016,"6x75",240,44.7,29,"16035052016",{"$f":"HYPERLINK(\"https://app.liv-ex.com/#/wine-page?lwin11=\"&Table1[[#This Row],[Latest LWIN]],Table1[[#This Row],[Latest LWIN]])","v":"16035052016"}]
[null,"Bonneau, Chateauneuf Du Pape Marie Beurrier",2014,"12x75",1075,100.2,1,"11088532014",{"$f":"HYPERLINK(\"https://app.liv-ex.com/#/wine-page?lwin11=\"&Table1[[#This Row],[Latest LWIN]],Table1[[#This Row],[Latest LWIN]])","v":"11088532014"}]
[null,"Bosquet Papes, Chateauneuf Du Pape",2016,"12x75",193,18,3,"11089382016",{"$f":"HYPERLINK(\"https://app.liv-ex.com/#/wine-page?lwin11=\"&Table1[[#This Row],[Latest LWIN]],Table1[[#This Row],[Latest LWIN]])","v":"11089382016"}]
[null,"Bosquet Papes, Chateauneuf Du Pape Chantemerle",2012,"6x150",632,117.8,1,"11089672012",{"$f":"HYPERLINK(\"https://app.liv-ex.com/#/wine-page?lwin11=\"&Table1[[#This Row],[Latest LWIN]],Table1[[#This Row],[Latest LWIN]])","v":"11089672012"}]
[null,"Bosquet Papes, Chateauneuf Du Pape Chantemerle Vv",2010,"6x75",435,81.099999999999994,1,"11089542010",{"$f":"HYPERLINK(\"https://app.liv-ex.com/#/wine-page?lwin11=\"&Table1[[#This Row],[Latest LWIN]],Table1[[#This Row],[Latest LWIN]])","v":"11089542010"}]
[null,"Bosquet Papes, Chateauneuf Du Pape Tradition",2015,"12x75",242,22.6,10,"13384052015",{"$f":"HYPERLINK(\"https://app.liv-ex.com/#/wine-page?lwin11=\"&Table1[[#This Row],[Latest LWIN]],Table1[[#This Row],[Latest LWIN]])","v":"13384052015"}]
[null,"Cailloux, Chateauneuf Du Pape Centenaire",2007,"6x75",525,97.9,1,"11092542007",{"$f":"HYPERLINK(\"https://app.liv-ex.com/#/wine-page?lwin11=\"&Table1[[#This Row],[Latest LWIN]],Table1[[#This Row],[Latest LWIN]])","v":"11092542007"}]
[null,"Chapoutier, Chateauneuf Du Pape Croix Bois",2013,"1x300",175,195.8,1,"11095282013",{"$f":"HYPERLINK(\"https://app.liv-ex.com/#/wine-page?lwin11=\"&Table1[[#This Row],[Latest LWIN]],Table1[[#This Row],[Latest LWIN]])","v":"11095282013"}]
[null,"Chapoutier, Cote Rotie Becasses",1999,"6x75",290,54.1,1,"11095861999",{"$f":"HYPERLINK(\"https://app.liv-ex.com/#/wine-page?lwin11=\"&Table1[[#This Row],[Latest LWIN]],Table1[[#This Row],[Latest LWIN]])","v":"11095861999"}]
[null,"Chapoutier, Ermitage Blanc Ermite",2013,"6x75",2225,414.8,1,"11096452013",{"$f":"HYPERLINK(\"https://app.liv-ex.com/#/wine-page?lwin11=\"&Table1[[#This Row],[Latest LWIN]],Table1[[#This Row],[Latest LWIN]])","v":"11096452013"}]
[null,"Chapoutier, Ermitage Blanc Oree",2015,"6x75",510,95.1,1,"11096582015",{"$f":"HYPERLINK(\"https://app.liv-ex.com/#/wine-page?lwin11=\"&Table1[[#This Row],[Latest LWIN]],Table1[[#This Row],[Latest LWIN]])","v":"11096582015"}]
[null,"Chapoutier, Ermitage Blanc Oree",2014,"6x75",510,95.1,1,"11096582014",{"$f":"HYPERLINK(\"https://app.liv-ex.com/#/wine-page?lwin11=\"&Table1[[#This Row],[Latest LWIN]],Table1[[#This Row],[Latest LWIN]])","v":"11096582014"}]
[null,"Chapoutier, Ermitage Ermite",2016,"6x75",962,179.3,1,"11096612016",{"$f":"HYPERLINK(\"https://app.liv-ex.com/#/wine-page?lwin11=\"&Table1[[#This Row],[Latest LWIN]],Table1[[#This Row],[Latest LWIN]])","v":"11096612016"}]
[null,"Chapoutier, Ermitage Ermite",2015,"6x75",1380,257.3,1,"11096612015",{"$f":"HYPERLINK(\"https://app.liv-ex.com/#/wine-page?lwin11=\"&Table1[[#This Row],[Latest LWIN]],Table1[[#This Row],[Latest LWIN]])","v":"11096612015"}]
[null,"Chapoutier, Ermitage Ermite",2013,"6x75",800,149.1,1,"11096612013",{"$f":"HYPERLINK(\"https://app.liv-ex.com/#/wine-page?lwin11=\"&Table1[[#This Row],[Latest LWIN]],Table1[[#This Row],[Latest LWIN]])","v":"11096612013"}]
[null,"Chapoutier, Ermitage Ermite",2001,"6x150",1875,349.6,1,"11096612001",{"$f":"HYPERLINK(\"https://app.liv-ex.com/#/wine-page?lwin11=\"&Table1[[#This Row],[Latest LWIN]],Table1[[#This Row],[Latest LWIN]])","v":"11096612001"}]
[null,"Chapoutier, Ermitage Greffieux",2010,"6x75",769,143.4,8,"11096742010",{"$f":"HYPERLINK(\"https://app.liv-ex.com/#/wine-page?lwin11=\"&Table1[[#This Row],[Latest LWIN]],Table1[[#This Row],[Latest LWIN]])","v":"11096742010"}]
[null,"Chapoutier, Ermitage Greffieux",2006,"6x75",1020,190.2,4,"11096742006",{"$f":"HYPERLINK(\"https://app.liv-ex.com/#/wine-page?lwin11=\"&Table1[[#This Row],[Latest LWIN]],Table1[[#This Row],[Latest LWIN]])","v":"11096742006"}]
[null,"Chapoutier, Ermitage Meal",2013,"6x75",600,111.9,1,"11096872013",{"$f":"HYPERLINK(\"https://app.liv-ex.com/#/wine-page?lwin11=\"&Table1[[#This Row],[Latest LWIN]],Table1[[#This Row],[Latest LWIN]])","v":"11096872013"}]
[null,"Chapoutier, Ermitage Pavillon",2009,"1x75",180,201.3,1,"11097042009",{"$f":"HYPERLINK(\"https://app.liv-ex.com/#/wine-page?lwin11=\"&Table1[[#This Row],[Latest LWIN]],Table1[[#This Row],[Latest LWIN]])","v":"11097042009"}]
[null,"Chapoutier, Hermitage Sizeranne",2009,"6x75",230,42.9,1,"11097622009",{"$f":"HYPERLINK(\"https://app.liv-ex.com/#/wine-page?lwin11=\"&Table1[[#This Row],[Latest LWIN]],Table1[[#This Row],[Latest LWIN]])","v":"11097622009"}]
[null,"Chapoutier, Hermitage Sizeranne",2009,"6x75",250,46.6,1,"11097622009",{"$f":"HYPERLINK(\"https://app.liv-ex.com/#/wine-page?lwin11=\"&Table1[[#This Row],[Latest LWIN]],Table1[[#This Row],[Latest LWIN]])","v":"11097622009"}]
[null,"Chapoutier, Saint-Joseph Granits",1997,"1x150",110,123,3,"11709401997",{"$f":"HYPERLINK(\"https://app.liv-ex.com/#/wine-page?lwin11=\"&Table1[[#This Row],[Latest LWIN]],Table1[[#This Row],[Latest LWIN]])","v":"11709401997"}]
[null,"Clos Caillou, Cotes Du Rhone Bouquet Garrigues Rouge",2017,"6x75",60,11.2,20,"13161372017",{"$f":"HYPERLINK(\"https://app.liv-ex.com/#/wine-page?lwin11=\"&Table1[[#This Row],[Latest LWIN]],Table1[[#This Row],[Latest LWIN]])","v":"13161372017"}]
[null,"Clos des Papes, Chateauneuf-du-Pape Rouge",2008,"6x75",200,37.299999999999997,2,"11104872008",{"$f":"HYPERLINK(\"https://app.liv-ex.com/#/wine-page?lwin11=\"&Table1[[#This Row],[Latest LWIN]],Table1[[#This Row],[Latest LWIN]])","v":"11104872008"}]
[null,"Clos Papes, Chateauneuf Du Pape Blanc",2016,"12x75",412,38.4,1,"11104902016",{"$f":"HYPERLINK(\"https://app.liv-ex.com/#/wine-page?lwin11=\"&Table1[[#This Row],[Latest LWIN]],Table1[[#This Row],[Latest LWIN]])","v":"11104902016"}]
[null,"Clos Papes, Chateauneuf Du Pape Blanc",2014,"6x75",185,34.5,1,"11104902014",{"$f":"HYPERLINK(\"https://app.liv-ex.com/#/wine-page?lwin11=\"&Table1[[#This Row],[Latest LWIN]],Table1[[#This Row],[Latest LWIN]])","v":"11104902014"}]
[null,"Clos St Jean, Chateauneuf Du Pape",2016,"12x75",209,19.5,15,"11105172016",{"$f":"HYPERLINK(\"https://app.liv-ex.com/#/wine-page?lwin11=\"&Table1[[#This Row],[Latest LWIN]],Table1[[#This Row],[Latest LWIN]])","v":"11105172016"}]
[null,"Clos St Jean, Chateauneuf Du Pape",2009,"3x150",192,71.599999999999994,5,"11105172009",{"$f":"HYPERLINK(\"https://app.liv-ex.com/#/wine-page?lwin11=\"&Table1[[#This Row],[Latest LWIN]],Table1[[#This Row],[Latest LWIN]])","v":"11105172009"}]
[null,"Clos St Jean, Chateauneuf Du Pape Combe Des Fous",2016,"6x75",300,55.9,6,"11263092016",{"$f":"HYPERLINK(\"https://app.liv-ex.com/#/wine-page?lwin11=\"&Table1[[#This Row],[Latest LWIN]],Table1[[#This Row],[Latest LWIN]])","v":"11263092016"}]
[null,"Clos St Jean, Chateauneuf Du Pape Deus-Ex Machina",2015,"1x150",171,191.3,3,"11262952015",{"$f":"HYPERLINK(\"https://app.liv-ex.com/#/wine-page?lwin11=\"&Table1[[#This Row],[Latest LWIN]],Table1[[#This Row],[Latest LWIN]])","v":"11262952015"}]
[null,"Clusel Roch, Cote Rotie Grandes Places",2017,"3x150",302,112.6,2,"11105882017",{"$f":"HYPERLINK(\"https://app.liv-ex.com/#/wine-page?lwin11=\"&Table1[[#This Row],[Latest LWIN]],Table1[[#This Row],[Latest LWIN]])","v":"11105882017"}]
[null,"Colombier, Crozes-Hermitage Gaby",2011,"12x75",145,13.5,1,"11106472011",{"$f":"HYPERLINK(\"https://app.liv-ex.com/#/wine-page?lwin11=\"&Table1[[#This Row],[Latest LWIN]],Table1[[#This Row],[Latest LWIN]])","v":"11106472011"}]
[null,"Colombier, Hermitage",2015,"12x75",527,49.1,10,"11106502015",{"$f":"HYPERLINK(\"https://app.liv-ex.com/#/wine-page?lwin11=\"&Table1[[#This Row],[Latest LWIN]],Table1[[#This Row],[Latest LWIN]])","v":"11106502015"}]
[null,"Courac, Cotes Du Rhone Villages Laudun Rouge",2011,"12x75",50,4.7,3,"12405862011",{"$f":"HYPERLINK(\"https://app.liv-ex.com/#/wine-page?lwin11=\"&Table1[[#This Row],[Latest LWIN]],Table1[[#This Row],[Latest LWIN]])","v":"12405862011"}]
[null,"Delas, Cote Rotie Landonne",2016,"6x75",550,102.5,14,"11114262016",{"$f":"HYPERLINK(\"https://app.liv-ex.com/#/wine-page?lwin11=\"&Table1[[#This Row],[Latest LWIN]],Table1[[#This Row],[Latest LWIN]])","v":"11114262016"}]
[null,"Delas, Cote Rotie Seigneur Maugiron",2015,"6x75",220,41,4,"14224562015",{"$f":"HYPERLINK(\"https://app.liv-ex.com/#/wine-page?lwin11=\"&Table1[[#This Row],[Latest LWIN]],Table1[[#This Row],[Latest LWIN]])","v":"14224562015"}]
[null,"Delas, Cote Rotie Seigneur Maugiron",2015,"3x150",220,82,1,"14224562015",{"$f":"HYPERLINK(\"https://app.liv-ex.com/#/wine-page?lwin11=\"&Table1[[#This Row],[Latest LWIN]],Table1[[#This Row],[Latest LWIN]])","v":"14224562015"}]
[null,"Delas, Hermitage Bessards",2012,"6x75",577,107.6,1,"11114972012",{"$f":"HYPERLINK(\"https://app.liv-ex.com/#/wine-page?lwin11=\"&Table1[[#This Row],[Latest LWIN]],Table1[[#This Row],[Latest LWIN]])","v":"11114972012"}]
[null,"Delas, Hermitage Bessards",2007,"3x75",192,71.599999999999994,6,"11114972007",{"$f":"HYPERLINK(\"https://app.liv-ex.com/#/wine-page?lwin11=\"&Table1[[#This Row],[Latest LWIN]],Table1[[#This Row],[Latest LWIN]])","v":"11114972007"}]
[null,"Domaine Jamet, Cote Rotie Fructus Voluptas",2016,"6x75",410,76.400000000000006,1,"11138532016",{"$f":"HYPERLINK(\"https://app.liv-ex.com/#/wine-page?lwin11=\"&Table1[[#This Row],[Latest LWIN]],Table1[[#This Row],[Latest LWIN]])","v":"11138532016"}]
[null,"Domaine Jean Louis Chave, Hermitage Blanc",2017,"6x75",984,183.4,1,"11346032017",{"$f":"HYPERLINK(\"https://app.liv-ex.com/#/wine-page?lwin11=\"&Table1[[#This Row],[Latest LWIN]],Table1[[#This Row],[Latest LWIN]])","v":"11346032017"}]
[null,"d'Or Gueules, La Bolida",2005,"6x75",250,46.6,2,"11749772005",{"$f":"HYPERLINK(\"https://app.liv-ex.com/#/wine-page?lwin11=\"&Table1[[#This Row],[Latest LWIN]],Table1[[#This Row],[Latest LWIN]])","v":"11749772005"}]
[null,"Emmanuel Darnaud, Crozes-Hermitage Trois Chenes",2017,"6x75",110,20.5,20,"11765642017",{"$f":"HYPERLINK(\"https://app.liv-ex.com/#/wine-page?lwin11=\"&Table1[[#This Row],[Latest LWIN]],Table1[[#This Row],[Latest LWIN]])","v":"11765642017"}]
[null,"Ferrando, Chateauneuf Du Pape Colombis",2016,"6x75",363,67.7,2,"13365992016",{"$f":"HYPERLINK(\"https://app.liv-ex.com/#/wine-page?lwin11=\"&Table1[[#This Row],[Latest LWIN]],Table1[[#This Row],[Latest LWIN]])","v":"13365992016"}]
[null,"Franck Balthazar, Cornas Casimir",2018,"12x75",390,36.4,2,"11512952018",{"$f":"HYPERLINK(\"https://app.liv-ex.com/#/wine-page?lwin11=\"&Table1[[#This Row],[Latest LWIN]],Table1[[#This Row],[Latest LWIN]])","v":"11512952018"}]
[null,"Franck Balthazar, Cornas Chaillot",2018,"12x75",480,44.7,2,"11248972018",{"$f":"HYPERLINK(\"https://app.liv-ex.com/#/wine-page?lwin11=\"&Table1[[#This Row],[Latest LWIN]],Table1[[#This Row],[Latest LWIN]])","v":"11248972018"}]
[null,"Francois Villard, Condrieu Grand Vallon",2014,"6x75",143,26.7,1,"11180922014",{"$f":"HYPERLINK(\"https://app.liv-ex.com/#/wine-page?lwin11=\"&Table1[[#This Row],[Latest LWIN]],Table1[[#This Row],[Latest LWIN]])","v":"11180922014"}]
[null,"Francois Villard, Cornas Jouvet",2015,"6x75",150,28,1,"15030652015",{"$f":"HYPERLINK(\"https://app.liv-ex.com/#/wine-page?lwin11=\"&Table1[[#This Row],[Latest LWIN]],Table1[[#This Row],[Latest LWIN]])","v":"15030652015"}]
[null,"Gonon, Saint-Joseph",2018,"12x75",879,81.900000000000006,1,"12730902018",{"$f":"HYPERLINK(\"https://app.liv-ex.com/#/wine-page?lwin11=\"&Table1[[#This Row],[Latest LWIN]],Table1[[#This Row],[Latest LWIN]])","v":"12730902018"}]
[null,"Grand Veneur, Chateauneuf Du Pape Vv",2015,"6x75",220,41,20,"11130132015",{"$f":"HYPERLINK(\"https://app.liv-ex.com/#/wine-page?lwin11=\"&Table1[[#This Row],[Latest LWIN]],Table1[[#This Row],[Latest LWIN]])","v":"11130132015"}]
[null,"Guigal, Cote Rotie Ampuis",2012,"6x150",643,119.9,10,"11131722012",{"$f":"HYPERLINK(\"https://app.liv-ex.com/#/wine-page?lwin11=\"&Table1[[#This Row],[Latest LWIN]],Table1[[#This Row],[Latest LWIN]])","v":"11131722012"}]
[null,"Guigal, Cote Rotie Assortment",2016,"6x75",1093,203.8,1,"11424732016",{"$f":"HYPERLINK(\"https://app.liv-ex.com/#/wine-page?lwin11=\"&Table1[[#This Row],[Latest LWIN]],Table1[[#This Row],[Latest LWIN]])","v":"11424732016"}]
[null,"Guigal, Cote Rotie Assortment",2015,"3x75",824,307.2,3,"11424732015",{"$f":"HYPERLINK(\"https://app.liv-ex.com/#/wine-page?lwin11=\"&Table1[[#This Row],[Latest LWIN]],Table1[[#This Row],[Latest LWIN]])","v":"11424732015"}]
[null,"Guigal, Cote Rotie Landonne",2007,"6x75",1050,195.8,1,"11131982007",{"$f":"HYPERLINK(\"https://app.liv-ex.com/#/wine-page?lwin11=\"&Table1[[#This Row],[Latest LWIN]],Table1[[#This Row],[Latest LWIN]])","v":"11131982007"}]
[null,"Guigal, Cote Rotie Mouline",2009,"6x75",1750,326.3,3,"11132022009",{"$f":"HYPERLINK(\"https://app.liv-ex.com/#/wine-page?lwin11=\"&Table1[[#This Row],[Latest LWIN]],Table1[[#This Row],[Latest LWIN]])","v":"11132022009"}]
[null,"Guigal, Cote Rotie Mouline",2001,"3x75",800,298.3,1,"11132022001",{"$f":"HYPERLINK(\"https://app.liv-ex.com/#/wine-page?lwin11=\"&Table1[[#This Row],[Latest LWIN]],Table1[[#This Row],[Latest LWIN]])","v":"11132022001"}]
[null,"Guigal, Cote Rotie Turque",2016,"6x75",960,179,1,"11132152016",{"$f":"HYPERLINK(\"https://app.liv-ex.com/#/wine-page?lwin11=\"&Table1[[#This Row],[Latest LWIN]],Table1[[#This Row],[Latest LWIN]])","v":"11132152016"}]
[null,"Guigal, Cote Rotie Turque",2006,"12x75",1978,184.4,1,"11132152006",{"$f":"HYPERLINK(\"https://app.liv-ex.com/#/wine-page?lwin11=\"&Table1[[#This Row],[Latest LWIN]],Table1[[#This Row],[Latest LWIN]])","v":"11132152006"}]
[null,"Guigal, Saint-Joseph",2016,"12x75",121,11.3,10,"11133032016",{"$f":"HYPERLINK(\"https://app.liv-ex.com/#/wine-page?lwin11=\"&Table1[[#This Row],[Latest LWIN]],Table1[[#This Row],[Latest LWIN]])","v":"11133032016"}]
[null,"Guigal, Saint-Joseph Vignes Hospice",2016,"6x75",191,35.6,1,"11132992016",{"$f":"HYPERLINK(\"https://app.liv-ex.com/#/wine-page?lwin11=\"&Table1[[#This Row],[Latest LWIN]],Table1[[#This Row],[Latest LWIN]])","v":"11132992016"}]
[null,"Janasse, Chateauneuf Du Pape Chaupin",2011,"6x75",238,44.4,6,"11139542011",{"$f":"HYPERLINK(\"https://app.liv-ex.com/#/wine-page?lwin11=\"&Table1[[#This Row],[Latest LWIN]],Table1[[#This Row],[Latest LWIN]])","v":"11139542011"}]
[null,"Janasse, Chateauneuf Du Pape Chaupin",2000,"2x150",200,111.9,1,"11139542000",{"$f":"HYPERLINK(\"https://app.liv-ex.com/#/wine-page?lwin11=\"&Table1[[#This Row],[Latest LWIN]],Table1[[#This Row],[Latest LWIN]])","v":"11139542000"}]
[null,"Janasse, Chateauneuf Du Pape Cuvee Xxl",2016,"1x75",243,271.8,6,"11139672016",{"$f":"HYPERLINK(\"https://app.liv-ex.com/#/wine-page?lwin11=\"&Table1[[#This Row],[Latest LWIN]],Table1[[#This Row],[Latest LWIN]])","v":"11139672016"}]
[null,"Janasse, Chateauneuf Du Pape Vv",2017,"12x75",471,43.9,37,"11139702017",{"$f":"HYPERLINK(\"https://app.liv-ex.com/#/wine-page?lwin11=\"&Table1[[#This Row],[Latest LWIN]],Table1[[#This Row],[Latest LWIN]])","v":"11139702017"}]
[null,"Jasmin, Cote Rotie Giroflarie",2017,"12x75",273,25.4,12,"15812052017",{"$f":"HYPERLINK(\"https://app.liv-ex.com/#/wine-page?lwin11=\"&Table1[[#This Row],[Latest LWIN]],Table1[[#This Row],[Latest LWIN]])","v":"15812052017"}]
[null,"Jean-Luc Colombo, Cornas Louvee",2009,"3x150",330,123,2,"11108102009",{"$f":"HYPERLINK(\"https://app.liv-ex.com/#/wine-page?lwin11=\"&Table1[[#This Row],[Latest LWIN]],Table1[[#This Row],[Latest LWIN]])","v":"11108102009"}]
[null,"Jean-Luc Jamet, Cote Rotie Terrasses",2016,"12x75",495,46.1,10,"17520722016",{"$f":"HYPERLINK(\"https://app.liv-ex.com/#/wine-page?lwin11=\"&Table1[[#This Row],[Latest LWIN]],Table1[[#This Row],[Latest LWIN]])","v":"17520722016"}]
[null,"Jean-Michel Gerin, Cote Rotie Grandes Places",2015,"3x150",508,189.4,2,"11126672015",{"$f":"HYPERLINK(\"https://app.liv-ex.com/#/wine-page?lwin11=\"&Table1[[#This Row],[Latest LWIN]],Table1[[#This Row],[Latest LWIN]])","v":"11126672015"}]
[null,"Jean-Michel Gerin, Cote Rotie Landonne",2010,"6x75",690,128.6,1,"11126702010",{"$f":"HYPERLINK(\"https://app.liv-ex.com/#/wine-page?lwin11=\"&Table1[[#This Row],[Latest LWIN]],Table1[[#This Row],[Latest LWIN]])","v":"11126702010"}]
[null,"Jean-Michel Gerin, Cote Rotie Vialliere",2012,"6x75",255,47.5,5,"11577472012",{"$f":"HYPERLINK(\"https://app.liv-ex.com/#/wine-page?lwin11=\"&Table1[[#This Row],[Latest LWIN]],Table1[[#This Row],[Latest LWIN]])","v":"11577472012"}]
[null,"JL Chave Selection, Hermitage Farconnet",2007,"12x75",400,37.299999999999997,1,"11345992007",{"$f":"HYPERLINK(\"https://app.liv-ex.com/#/wine-page?lwin11=\"&Table1[[#This Row],[Latest LWIN]],Table1[[#This Row],[Latest LWIN]])","v":"11345992007"}]
[null,"Marcoux, Lirac La Lorentine",2016,"12x75",113,10.5,10,"11454902016",{"$f":"HYPERLINK(\"https://app.liv-ex.com/#/wine-page?lwin11=\"&Table1[[#This Row],[Latest LWIN]],Table1[[#This Row],[Latest LWIN]])","v":"11454902016"}]
[null,"Marie et Pierre Benetiere, Condrieu",2009,"6x150",604,112.6,1,"12348532009",{"$f":"HYPERLINK(\"https://app.liv-ex.com/#/wine-page?lwin11=\"&Table1[[#This Row],[Latest LWIN]],Table1[[#This Row],[Latest LWIN]])","v":"12348532009"}]
[null,"Marie et Pierre Benetiere, Cote Rotie Cordeloux",2012,"12x75",1484,138.30000000000001,2,"12192652012",{"$f":"HYPERLINK(\"https://app.liv-ex.com/#/wine-page?lwin11=\"&Table1[[#This Row],[Latest LWIN]],Table1[[#This Row],[Latest LWIN]])","v":"12192652012"}]
[null,"Marie et Pierre Benetiere, Cote Rotie Cordeloux",2009,"12x75",1758,163.9,2,"12192652009",{"$f":"HYPERLINK(\"https://app.liv-ex.com/#/wine-page?lwin11=\"&Table1[[#This Row],[Latest LWIN]],Table1[[#This Row],[Latest LWIN]])","v":"12192652009"}]
[null,"Michel & Stephane Ogier, Cote Rotie",2011,"6x75",185,34.5,1,"11149062011",{"$f":"HYPERLINK(\"https://app.liv-ex.com/#/wine-page?lwin11=\"&Table1[[#This Row],[Latest LWIN]],Table1[[#This Row],[Latest LWIN]])","v":"11149062011"}]
[null,"Michel & Stephane Ogier, Cote Rotie",2011,"6x75",175,32.6,1,"11149062011",{"$f":"HYPERLINK(\"https://app.liv-ex.com/#/wine-page?lwin11=\"&Table1[[#This Row],[Latest LWIN]],Table1[[#This Row],[Latest LWIN]])","v":"11149062011"}]
[null,"Michel & Stephane Ogier, Cote Rotie",2011,"6x75",175,32.6,1,"11149062011",{"$f":"HYPERLINK(\"https://app.liv-ex.com/#/wine-page?lwin11=\"&Table1[[#This Row],[Latest LWIN]],Table1[[#This Row],[Latest LWIN]])","v":"11149062011"}]
[null,"Michel & Stephane Ogier, Cote Rotie",2011,"6x75",185,34.5,1,"11149062011",{"$f":"HYPERLINK(\"https://app.liv-ex.com/#/wine-page?lwin11=\"&Table1[[#This Row],[Latest LWIN]],Table1[[#This Row],[Latest LWIN]])","v":"11149062011"}]
[null,"Michel & Stephane Ogier, Cote Rotie Lancement",2011,"3x75",453,168.9,1,"11149482011",{"$f":"HYPERLINK(\"https://app.liv-ex.com/#/wine-page?lwin11=\"&Table1[[#This Row],[Latest LWIN]],Table1[[#This Row],[Latest LWIN]])","v":"11149482011"}]
[null,"Mordoree, Chateauneuf Du Pape Reine Bois",2017,"6x75",213,39.700000000000003,8,"11146322017",{"$f":"HYPERLINK(\"https://app.liv-ex.com/#/wine-page?lwin11=\"&Table1[[#This Row],[Latest LWIN]],Table1[[#This Row],[Latest LWIN]])","v":"11146322017"}]
[null,"Paul Jaboulet Aine, Crozes-Hermitage Roure",2015,"6x75",199,37.1,1,"11135342015",{"$f":"HYPERLINK(\"https://app.liv-ex.com/#/wine-page?lwin11=\"&Table1[[#This Row],[Latest LWIN]],Table1[[#This Row],[Latest LWIN]])","v":"11135342015"}]
[null,"Paul Jaboulet Aine, Crozes-Hermitage Thalabert",2004,"6x150",170,31.7,1,"11135472004",{"$f":"HYPERLINK(\"https://app.liv-ex.com/#/wine-page?lwin11=\"&Table1[[#This Row],[Latest LWIN]],Table1[[#This Row],[Latest LWIN]])","v":"11135472004"}]
[null,"Paul Jaboulet Aine, Hermitage Chapelle",2017,"6x75",610,113.7,4,"11135632017",{"$f":"HYPERLINK(\"https://app.liv-ex.com/#/wine-page?lwin11=\"&Table1[[#This Row],[Latest LWIN]],Table1[[#This Row],[Latest LWIN]])","v":"11135632017"}]
[null,"Paul Jaboulet Aine, Hermitage Chapelle",2016,"6x75",630,117.5,1,"11135632016",{"$f":"HYPERLINK(\"https://app.liv-ex.com/#/wine-page?lwin11=\"&Table1[[#This Row],[Latest LWIN]],Table1[[#This Row],[Latest LWIN]])","v":"11135632016"}]
[null,"Paul Jaboulet Aine, Hermitage Chapelle",2016,"6x75",660,123,1,"11135632016",{"$f":"HYPERLINK(\"https://app.liv-ex.com/#/wine-page?lwin11=\"&Table1[[#This Row],[Latest LWIN]],Table1[[#This Row],[Latest LWIN]])","v":"11135632016"}]
[null,"Paul Jaboulet Aine, Hermitage Chapelle",1989,"6x75",985,183.6,1,"11135631989",{"$f":"HYPERLINK(\"https://app.liv-ex.com/#/wine-page?lwin11=\"&Table1[[#This Row],[Latest LWIN]],Table1[[#This Row],[Latest LWIN]])","v":"11135631989"}]
[null,"Paul Jaboulet Aine, Hermitage Chapelle",1985,"1x150",334,373.6,1,"11135631985",{"$f":"HYPERLINK(\"https://app.liv-ex.com/#/wine-page?lwin11=\"&Table1[[#This Row],[Latest LWIN]],Table1[[#This Row],[Latest LWIN]])","v":"11135631985"}]
[null,"Paul Jaboulet Aine, Hermitage Maison Bleue",2015,"3x150",180,67.099999999999994,1,"15148492015",{"$f":"HYPERLINK(\"https://app.liv-ex.com/#/wine-page?lwin11=\"&Table1[[#This Row],[Latest LWIN]],Table1[[#This Row],[Latest LWIN]])","v":"15148492015"}]
[null,"Paul Jaboulet Aine, Hermitage Petite Chapelle",2011,"6x75",169,31.5,120,"11135922011",{"$f":"HYPERLINK(\"https://app.liv-ex.com/#/wine-page?lwin11=\"&Table1[[#This Row],[Latest LWIN]],Table1[[#This Row],[Latest LWIN]])","v":"11135922011"}]
[null,"Pegau, Chateauneuf Du Pape Capo",2015,"6x75",1175,219.1,10,"11150622015",{"$f":"HYPERLINK(\"https://app.liv-ex.com/#/wine-page?lwin11=\"&Table1[[#This Row],[Latest LWIN]],Table1[[#This Row],[Latest LWIN]])","v":"11150622015"}]
[null,"Pegau, Chateauneuf Du Pape Capo",2010,"1x600",2358,2637.6,1,"11150622010",{"$f":"HYPERLINK(\"https://app.liv-ex.com/#/wine-page?lwin11=\"&Table1[[#This Row],[Latest LWIN]],Table1[[#This Row],[Latest LWIN]])","v":"11150622010"}]
[null,"Pegau, Chateauneuf Du Pape Reservee",2010,"3x150",335,124.9,1,"11151182010",{"$f":"HYPERLINK(\"https://app.liv-ex.com/#/wine-page?lwin11=\"&Table1[[#This Row],[Latest LWIN]],Table1[[#This Row],[Latest LWIN]])","v":"11151182010"}]
[null,"Pierre Usseglio, Chateauneuf Du Pape Mon Aieul",1998,"12x75",824,76.8,1,"11176621998",{"$f":"HYPERLINK(\"https://app.liv-ex.com/#/wine-page?lwin11=\"&Table1[[#This Row],[Latest LWIN]],Table1[[#This Row],[Latest LWIN]])","v":"11176621998"}]
[null,"Rayas, Chateauneuf-du-Pape",2007,"12x75",8242,768.3,1,"11363912007",{"$f":"HYPERLINK(\"https://app.liv-ex.com/#/wine-page?lwin11=\"&Table1[[#This Row],[Latest LWIN]],Table1[[#This Row],[Latest LWIN]])","v":"11363912007"}]
[null,"Raymond Usseglio, Chateauneuf Du Pape Imperiale",2018,"6x75",162,30.2,20,"11742832018",{"$f":"HYPERLINK(\"https://app.liv-ex.com/#/wine-page?lwin11=\"&Table1[[#This Row],[Latest LWIN]],Table1[[#This Row],[Latest LWIN]])","v":"11742832018"}]
[null,"Roger Sabon, Chateauneuf Du Pape Olivets",2009,"6x150",210,39.200000000000003,1,"11161152009",{"$f":"HYPERLINK(\"https://app.liv-ex.com/#/wine-page?lwin11=\"&Table1[[#This Row],[Latest LWIN]],Table1[[#This Row],[Latest LWIN]])","v":"11161152009"}]
[null,"Roger Sabon, Chateauneuf Du Pape Secret",2009,"6x75",400,74.599999999999994,1,"11704872009",{"$f":"HYPERLINK(\"https://app.liv-ex.com/#/wine-page?lwin11=\"&Table1[[#This Row],[Latest LWIN]],Table1[[#This Row],[Latest LWIN]])","v":"11704872009"}]
[null,"Roger Sabon, Chateauneuf Du Pape Secret",2009,"6x75",370,69,1,"11704872009",{"$f":"HYPERLINK(\"https://app.liv-ex.com/#/wine-page?lwin11=\"&Table1[[#This Row],[Latest LWIN]],Table1[[#This Row],[Latest LWIN]])","v":"11704872009"}]
[null,"Roger Sabon, Chateauneuf Du Pape Secret",2005,"1x150",321,359.1,1,"11704872005",{"$f":"HYPERLINK(\"https://app.liv-ex.com/#/wine-page?lwin11=\"&Table1[[#This Row],[Latest LWIN]],Table1[[#This Row],[Latest LWIN]])","v":"11704872005"}]
[null,"Rotem & Mounir Saouma, Chateauneuf Du Pape Arioso",2015,"6x75",565,105.3,3,"13131522015",{"$f":"HYPERLINK(\"https://app.liv-ex.com/#/wine-page?lwin11=\"&Table1[[#This Row],[Latest LWIN]],Table1[[#This Row],[Latest LWIN]])","v":"13131522015"}]
[null,"Rotem & Mounir Saouma, Chateauneuf Du Pape Magis Blanc",2014,"6x75",453,84.5,5,"12138722014",{"$f":"HYPERLINK(\"https://app.liv-ex.com/#/wine-page?lwin11=\"&Table1[[#This Row],[Latest LWIN]],Table1[[#This Row],[Latest LWIN]])","v":"12138722014"}]
[null,"Saint Cosme, Gigondas Hominis Fides",2018,"6x75",330,61.5,1,"11169132018",{"$f":"HYPERLINK(\"https://app.liv-ex.com/#/wine-page?lwin11=\"&Table1[[#This Row],[Latest LWIN]],Table1[[#This Row],[Latest LWIN]])","v":"11169132018"}]
[null,"Saint Cosme, Gigondas Poste",2018,"6x75",313,58.4,1,"11169392018",{"$f":"HYPERLINK(\"https://app.liv-ex.com/#/wine-page?lwin11=\"&Table1[[#This Row],[Latest LWIN]],Table1[[#This Row],[Latest LWIN]])","v":"11169392018"}]
[null,"Saint Prefert, Chateauneuf Du Pape",2017,"6x75",113,21.1,6,"11577212017",{"$f":"HYPERLINK(\"https://app.liv-ex.com/#/wine-page?lwin11=\"&Table1[[#This Row],[Latest LWIN]],Table1[[#This Row],[Latest LWIN]])","v":"11577212017"}]
[null,"Saint Prefert, Chateauneuf Du Pape Charles Giraud",2010,"6x75",800,149.1,1,"13191382010",{"$f":"HYPERLINK(\"https://app.liv-ex.com/#/wine-page?lwin11=\"&Table1[[#This Row],[Latest LWIN]],Table1[[#This Row],[Latest LWIN]])","v":"13191382010"}]
[null,"Saint Prefert, Chateauneuf Du Pape Reserve Auguste Favier",2017,"6x75",187,34.9,10,"11161992017",{"$f":"HYPERLINK(\"https://app.liv-ex.com/#/wine-page?lwin11=\"&Table1[[#This Row],[Latest LWIN]],Table1[[#This Row],[Latest LWIN]])","v":"11161992017"}]
[null,"Saint Prefert, Chateauneuf Du Pape Reserve Auguste Favier",2017,"6x75",195,36.4,6,"11161992017",{"$f":"HYPERLINK(\"https://app.liv-ex.com/#/wine-page?lwin11=\"&Table1[[#This Row],[Latest LWIN]],Table1[[#This Row],[Latest LWIN]])","v":"11161992017"}]
[null,"Santa Duc, Gigondas Santa Roc",2010,"6x75",110,20.5,1,"12193372010",{"$f":"HYPERLINK(\"https://app.liv-ex.com/#/wine-page?lwin11=\"&Table1[[#This Row],[Latest LWIN]],Table1[[#This Row],[Latest LWIN]])","v":"12193372010"}]
[null,"Vieille Julienne, Chateauneuf Du Pape Hauts Lieux",2015,"12x75",460,42.9,9,"12388772015",{"$f":"HYPERLINK(\"https://app.liv-ex.com/#/wine-page?lwin11=\"&Table1[[#This Row],[Latest LWIN]],Table1[[#This Row],[Latest LWIN]])","v":"12388772015"}]
[null,"Vieille Julienne, Chateauneuf Du Pape Reserve",2015,"6x75",850,158.5,2,"11180342015",{"$f":"HYPERLINK(\"https://app.liv-ex.com/#/wine-page?lwin11=\"&Table1[[#This Row],[Latest LWIN]],Table1[[#This Row],[Latest LWIN]])","v":"11180342015"}]
[null,"Vieux Telegraphe, Chateauneuf-du-Pape La Crau Rouge",2015,"6x150",440,82,10,"11180762015",{"$f":"HYPERLINK(\"https://app.liv-ex.com/#/wine-page?lwin11=\"&Table1[[#This Row],[Latest LWIN]],Table1[[#This Row],[Latest LWIN]])","v":"11180762015"}]